bitfinex/quotes_ETHUSD_20240713
["timestamp","ask_amount","ask_price","bid_price","bid_amount"]
[1720898275058,1.20888337,3169.6,3169.5,7.64719312]
[1720898275431,1.20890956,3169.6,3169.4,0.81]
[1720898275635,1.09299616,3169.5,3169.4,0.81]
[1720898276458,1.09299616,3169.5,3168.9,2.20895]
[1720898276459,2.4272,3169.4,3168.9,2.20895]
[1720898276639,2.4272,3169.4,3169.3,0.81]
[1720898276841,3.52035979,3169.4,3169.3,0.81]
[1720898278552,2.4272,3169.4,3169.3,0.81]
[1720898278882,3.52035886,3169.4,3169.3,0.81]
[1720898280384,3.88398609,3169.4,3169.3,0.81]
[1720898281064,2.79082723,3169.4,3169.3,0.81]
[1720898281245,3.88402949,3169.4,3169.3,0.81]
[1720898281647,3.88402952,3169.4,3169.3,0.81]
[1720898283958,3.88403356,3169.4,3169.3,0.81]
[1720898284557,3.88402204,3169.4,3169.3,0.81]
[1720898284892,1.09319481,3169.4,3169.3,0.81]
[1720898289189,2.5431134,3169.6,3169.3,0.81]
[1720898289650,2.5431134,3169.6,3169.1,0.81]
[1720898291808,2.5431134,3169.6,3168.7,6.67824718]
[1720898292103,1.09322556,3169.5,3168.7,6.67824718]
[1720898292310,2.4272,3169.3,3168.7,6.67824718]
[1720898292803,2.4272,3169.1,3168.7,6.67824718]
[1720898293000,1.09340408,3169.0,3168.7,6.67824718]
[1720898293207,1.09340408,3168.9,3168.7,6.67824718]
[1720898293356,1.09340408,3168.8,3168.7,6.67824718]
[1720898294402,2.4272,3169.1,3168.7,6.67824718]
[1720898294560,2.4272,3168.8,3168.7,6.67824718]
[1720898295081,3.5207119,3168.8,3168.7,6.67824718]
[1720898297269,3.52069253,3168.8,3168.7,6.67824718]
[1720898297470,3.52069253,3168.8,3168.5,20.66]
[1720898297688,1.09349253,3168.7,3168.5,20.66]
[1720898297884,1.09349253,3168.6,3168.5,20.66]
[1720898298293,2.4272,3168.8,3168.5,20.66]
[1720898298512,1.09349146,3168.6,3168.5,20.66]
[1720898302988,3.81246061,3168.6,3168.5,19.85]
[1720898303184,4.62246061,3168.6,3168.5,19.85]
[1720898303383,2.3669,3168.5,3168.1,6.67824718]
[1720898303600,1.09349146,3168.4,3168.1,6.67824718]
[1720898303817,1.55573752,3168.4,3167.8,12.28]
[1720898304106,1.09349146,3168.3,3167.8,12.28]
[1720898304506,1.09349146,3168.4,3167.8,12.28]
[1720898304717,1.09349146,3168.4,3167.9,0.81]
[1720898305095,2.3669,3168.5,3167.9,0.81]
[1720898305296,1.0936527,3168.4,3167.9,0.81]
[1720898305493,2.3669,3168.5,3167.9,0.81]
[1720898305704,1.09365193,3168.4,3167.9,0.81]
[1720898305899,1.09365193,3168.3,3167.9,0.81]
[1720898306083,1.09365193,3168.2,3167.9,0.81]
[1720898306285,1.09365193,3168.1,3167.9,0.81]
[1720898306484,1.09365193,3168.0,3167.9,0.81]
[1720898306911,1.09365193,3168.0,3167.8,12.28]
[1720898307099,1.09376958,3167.9,3167.8,12.28]
[1720898307302,1.43983654,3167.9,3167.8,12.28]
[1720898307615,1.09376958,3167.9,3167.4,2.4372]
[1720898307816,1.09376958,3167.9,3166.2,8.88903718]
[1720898307817,2.3669,3168.1,3167.3,0.81]
[1720898307981,1.09383061,3168.0,3167.3,0.81]
[1720898308515,1.09383818,3167.9,3167.3,0.81]
[1720898308719,1.09383818,3167.8,3167.3,0.81]
[1720898308886,1.09382889,3167.7,3167.5,0.81]
[1720898309082,1.09382889,3167.6,3167.5,0.81]
[1720898310586,2.3669,3168.1,3167.5,0.81]
[1720898310787,1.33051787,3168.0,3167.5,0.81]
[1720898310999,1.09382787,3167.9,3167.5,0.81]
[1720898311204,1.09382787,3167.8,3167.5,0.81]
[1720898311407,1.09382787,3167.7,3167.5,0.81]
[1720898311605,2.3669,3168.1,3167.5,0.81]
[1720898311821,1.09380438,3168.0,3167.5,0.81]
[1720898312023,1.09380438,3167.9,3167.5,0.81]
[1720898312222,1.09380438,3168.0,3167.5,0.81]
[1720898312521,1.09380438,3167.9,3167.5,0.81]
[1720898312718,1.09380438,3167.8,3167.5,0.81]
[1720898312918,1.09380438,3167.7,3167.5,0.81]
[1720898313122,1.09380438,3168.0,3167.5,0.81]
[1720898313324,1.09381742,3167.9,3167.5,0.81]
[1720898313623,1.09381742,3167.8,3167.5,0.81]
[1720898313790,1.09381742,3167.9,3167.5,0.81]
[1720898313991,1.09381742,3167.8,3167.5,0.81]
[1720898314238,1.09381742,3167.7,3167.5,0.81]
[1720898314395,1.09381742,3167.9,3167.5,0.81]
[1720898314594,1.09381742,3167.8,3167.5,0.81]
[1720898314822,1.09381742,3168.0,3167.5,0.81]
[1720898315026,2.60359,3168.1,3167.5,0.81]
[1720898315325,1.09382151,3168.0,3167.5,0.81]
[1720898315501,1.09379859,3167.9,3167.5,0.81]
[1720898315705,1.09379859,3167.8,3167.5,0.81]
[1720898315904,1.09379859,3167.7,3167.5,0.81]
[1720898316102,1.09379859,3168.0,3167.5,0.81]
[1720898316307,1.09379948,3167.9,3167.5,0.81]
[1720898316511,1.09379948,3167.8,3167.5,0.81]
[1720898316696,1.09379948,3167.7,3167.5,0.81]
[1720898316891,1.09379948,3168.0,3167.5,0.81]
[1720898317816,1.09380669,3167.9,3167.5,0.81]
[1720898318011,1.09380669,3167.8,3167.5,0.81]
[1720898318211,1.09380669,3167.7,3167.5,0.81]
[1720898318431,2.3669,3168.1,3167.5,0.81]
[1720898318732,1.09381069,3168.0,3167.5,0.81]
[1720898318918,1.09381069,3167.9,3167.5,0.81]
[1720898319119,1.09381069,3167.8,3167.5,0.81]
[1720898319329,1.09381069,3167.7,3167.5,0.81]
[1720898319531,1.09381069,3167.6,3167.5,0.81]
[1720898321495,1.09381069,3167.6,3167.5,3.1666]
[1720898321901,1.09376862,3167.6,3167.5,3.1666]
[1720898323431,3.38496862,3167.6,3167.2,0.81]
[1720898323632,1.09376862,3167.5,3167.2,0.81]
[1720898323799,2.2912,3167.8,3167.2,0.81]
[1720898324000,1.09376862,3167.7,3167.2,0.81]
[1720898325136,2.2912,3167.8,3167.2,0.81]
[1720898325303,1.09387948,3167.7,3167.2,0.81]
[1720898325503,2.2912,3167.8,3167.2,0.81]
[1720898325706,1.0938785,3167.7,3167.2,0.81]
[1720898325936,1.0938785,3167.6,3167.2,0.81]
[1720898326112,1.0938785,3167.7,3167.2,0.81]
[1720898326309,1.43238635,3167.7,3167.2,0.81]
[1720898326514,1.0938785,3167.6,3167.2,0.81]
[1720898327035,1.0938785,3167.6,3167.0,9.84484718]
[1720898328465,0.33850785,3167.7,3167.0,9.84484718]
[1720898328617,1.0939479,3167.5,3167.0,9.84484718]
[1720898328821,1.0939479,3167.4,3167.0,9.84484718]
[1720898329012,1.0939479,3167.3,3167.0,9.84484718]
[1720898329217,1.0939479,3167.2,3167.0,9.84484718]
[1720898329541,1.0939479,3167.1,3166.7,2.3566]
[1720898329710,2.2912,3167.4,3166.7,2.3566]
[1720898329711,1.0939479,3167.0,3166.7,3.1666]
[1720898329912,1.3230679,3167.3,3166.8,0.81]
[1720898330134,1.0939479,3167.2,3166.8,0.81]
[1720898332044,2.2912,3167.4,3166.8,0.81]
[1720898332045,1.09399219,3167.1,3166.8,0.81]
[1720898332204,1.09399219,3167.0,3166.8,0.81]
[1720898332409,1.09399219,3166.9,3166.8,0.81]
[1720898332819,1.09079219,3166.9,3166.8,0.81]
[1720898335247,2.2912,3167.4,3166.8,0.81]
[1720898335453,2.55335484,3167.4,3166.8,0.81]
[1720898342717,1.09409734,3167.3,3166.8,0.81]
[1720898342944,1.09409734,3167.2,3166.8,3.1924]
[1720898343251,1.09409734,3167.1,3166.8,3.1924]
[1720898343473,1.09409734,3167.0,3166.8,3.1924]
[1720898343751,1.09409734,3166.9,3166.8,3.51164]
[1720898344644,1.09402334,3166.9,3166.8,3.51164]
[1720898345055,1.09402835,3166.9,3166.8,3.51164]
[1720898345424,1.09402835,3167.5,3166.8,3.51164]
[1720898345726,1.09402835,3167.4,3166.8,3.1924]
[1720898345929,1.09402835,3167.5,3166.8,3.1924]
[1720898347123,2.82924842,3167.6,3166.8,3.1924]
[1720898347418,1.09409943,3167.5,3166.8,3.1924]
[1720898347622,1.09409943,3167.4,3166.8,3.1924]
[1720898347824,2.82924842,3167.6,3166.8,3.1924]
[1720898348020,1.68971767,3167.5,3166.8,3.1924]
[1720898348323,1.09408341,3167.4,3166.8,3.1924]
[1720898348524,1.09408341,3167.3,3166.8,3.1924]
[1720898348723,3.59298341,3167.2,3166.6,2.3824]
[1720898348924,1.09408341,3167.1,3166.6,2.3824]
[1720898349153,1.53438175,3167.1,3166.6,2.3824]
[1720898349332,1.09408341,3167.0,3166.6,2.3824]
[1720898349956,1.09408341,3167.0,3166.4,7.48824718]
[1720898350163,1.09408341,3167.0,3166.4,9.87064718]
[1720898351138,1.09415274,3166.9,3166.4,9.87064718]
[1720898351340,1.09415274,3166.8,3166.4,9.87064718]
[1720898351559,1.09415274,3167.0,3166.6,0.81]
[1720898351868,1.09415274,3166.9,3166.6,0.81]
[1720898352075,1.09415274,3166.8,3166.6,0.81]
[1720898352250,1.09415274,3166.7,3166.6,0.81]
[1720898352452,0.33035916,3167.2,3166.6,0.81]
[1720898352778,1.09413513,3167.1,3166.6,0.81]
[1720898354651,1.09413513,3167.1,3166.4,9.06064718]
[1720898354652,1.09416193,3167.0,3166.4,9.06064718]
[1720898354848,1.09416193,3166.9,3166.5,0.81]
[1720898355072,1.09416136,3166.8,3166.5,0.81]
[1720898355246,1.09416136,3166.7,3166.5,0.81]
[1720898355572,1.09416136,3166.6,3166.5,0.81]
[1720898355768,1.09416136,3167.1,3166.5,0.81]
[1720898355942,1.09416136,3167.0,3166.5,0.81]
[1720898357963,1.09418629,3166.9,3166.5,0.81]
[1720898358169,1.09418629,3166.8,3166.5,0.81]
[1720898358376,1.09418629,3166.7,3166.5,0.81]
[1720898358668,1.09418629,3166.6,3166.5,0.81]
[1720898358871,1.09418629,3167.1,3166.5,0.81]
[1720898359052,1.09418629,3167.0,3166.5,0.81]
[1720898359269,1.09418629,3166.9,3166.5,0.81]
[1720898359464,1.09418629,3166.8,3166.5,0.81]
[1720898359643,1.09418629,3166.7,3166.5,0.81]
[1720898359843,1.09418629,3166.6,3166.5,0.81]
[1720898360044,1.09418629,3167.1,3166.5,0.81]
[1720898360266,1.09418629,3167.0,3166.5,0.81]
[1720898360465,1.09418629,3166.9,3166.5,0.81]
[1720898360683,1.09418629,3166.8,3166.6,2.3565]
[1720898360977,1.09418629,3166.7,3166.6,2.3565]
[1720898361281,0.33035916,3167.2,3166.6,2.3565]
[1720898361581,1.09410364,3167.1,3166.8,0.81]
[1720898361744,1.09410364,3167.0,3166.9,2.3565]
[1720898364688,0.33035916,3167.2,3166.9,2.3565]
[1720898364863,1.09408904,3167.1,3166.9,2.3565]
[1720898365181,1.09409908,3167.0,3166.9,2.3565]
[1720898367604,1.09407269,3167.0,3166.9,2.3565]
[1720898367904,1.09407269,3167.0,3166.6,2.3565]
[1720898368049,1.09408766,3166.9,3166.6,3.1665]
[1720898368245,1.09408766,3166.8,3166.6,3.1665]
[1720898368582,1.09408766,3166.7,3166.6,3.1665]
[1720898369081,1.09408766,3167.1,3166.6,3.1665]
[1720898369324,1.09408766,3167.0,3166.6,3.1665]
[1720898369493,1.09408766,3167.0,3166.6,1.347709]
[1720898369784,1.09408766,3166.9,3166.7,2.3565]
[1720898369951,1.09408766,3166.8,3166.7,2.3565]
[1720898371362,1.09407147,3166.8,3166.7,2.3565]
[1720898374773,1.09407547,3166.8,3166.7,2.3565]
[1720898374980,0.33035916,3167.2,3166.7,2.3565]
[1720898375297,1.09407385,3167.1,3166.7,2.3565]
[1720898375500,1.09407385,3167.0,3166.7,2.3565]
[1720898375667,1.09407385,3166.9,3166.7,2.3565]
[1720898375868,1.09407385,3166.8,3166.7,2.3565]
[1720898377401,1.09408518,3166.8,3166.7,2.3565]
[1720898377900,1.09408518,3167.0,3166.7,2.3565]
[1720898378105,1.09412015,3166.9,3166.7,2.3565]
[1720898378306,1.09412015,3166.8,3166.7,2.3565]
[1720898378481,1.09412015,3167.0,3166.7,2.3565]
[1720898379581,1.09412015,3167.0,3166.5,2.3498]
[1720898379905,3.41750258,3167.0,3166.5,2.3498]
[1720898380105,1.09412015,3166.9,3166.5,2.3498]
[1720898381413,2.80675916,3167.2,3166.5,2.3498]
[1720898381578,1.09416612,3166.8,3166.5,2.3498]
[1720898381906,1.09416612,3166.7,3166.5,2.3498]
[1720898382102,1.09416612,3166.6,3166.5,2.3498]
[1720898384878,1.09409489,3166.6,3166.5,2.3498]
[1720898385392,1.0940972,3167.0,3166.5,2.3498]
[1720898385581,1.0940972,3166.9,3166.7,0.81]
[1720898385780,1.0940972,3166.8,3166.7,0.81]
[1720898387619,1.09409371,3166.8,3166.7,0.81]
[1720898388200,1.09409337,3166.8,3166.7,0.81]
[1720898391444,0.33035916,3167.2,3166.7,0.81]
[1720898391741,3.41859745,3167.1,3166.7,0.81]
[1720898391940,1.09409375,3167.0,3166.7,0.81]
[1720898392106,1.09409375,3166.9,3166.7,0.81]
[1720898392305,1.09409375,3166.8,3166.7,0.81]
[1720898392506,1.09409375,3167.0,3166.7,0.81]
[1720898392708,1.09409375,3166.9,3166.7,0.81]
[1720898392939,1.09409375,3166.8,3166.7,0.81]
[1720898393134,1.09409375,3167.0,3166.7,0.81]
[1720898393439,2.3245037,3167.1,3166.7,0.81]
[1720898393440,1.09409375,3166.9,3166.7,0.81]
[1720898393635,1.09409375,3166.8,3166.7,0.81]
[1720898393838,1.09409375,3166.8,3166.7,3.1598]
[1720898394040,1.09409375,3166.8,3166.7,5.907342]
[1720898395350,1.09405628,3166.8,3166.7,5.907342]
[1720898397602,1.09406178,3166.8,3166.7,5.907342]
[1720898397808,1.0940619,3167.1,3166.8,2.4752]
[1720898398009,1.0940619,3167.0,3166.9,5.49556]
[1720898398217,1.09396434,3167.0,3166.9,6.266166]
[1720898400443,1.09396434,3167.0,3166.9,8.476526]
[1720898400648,1.09396434,3167.0,3166.9,9.026526]
[1720898401022,0.3303629,3167.6,3167.3,2.21003]
[1720898401325,1.09386206,3167.5,3167.4,2.4752]
[1720898401531,1.09386206,3167.5,3167.4,3.2852]
[1720898403251,1.09386206,3167.5,3167.4,0.81]
[1720898403750,1.09386206,3167.5,3167.0,5.49548]
[1720898404051,2.4079,3167.7,3167.0,5.49548]
[1720898404052,1.09390385,3167.4,3167.0,5.49548]
[1720898404230,1.09390385,3167.3,3167.0,5.49548]
[1720898404425,1.09393294,3167.2,3167.0,5.49548]
[1720898404630,1.09393294,3167.1,3167.0,6.321065]
[1720898407349,1.09389941,3167.1,3167.0,6.321065]
[1720898410422,1.09389941,3167.1,3167.0,5.511065]
[1720898410617,1.09391496,3167.1,3167.0,6.321065]
[1720898412257,1.09391496,3167.1,3167.0,5.49548]
[1720898412758,1.09390843,3167.1,3167.0,5.49548]
[1720898414155,0.33035195,3167.6,3167.0,5.49548]
[1720898414458,1.09390722,3167.5,3167.2,0.81]
[1720898414627,1.09391273,3167.4,3167.2,0.81]
[1720898414827,1.09391273,3167.3,3167.2,0.81]
[1720898416461,1.09391273,3167.3,3167.0,0.81]
[1720898416641,1.09391273,3167.2,3167.0,0.81]
[1720898416823,0.33035195,3167.6,3167.0,0.81]
[1720898417029,1.09392963,3167.5,3167.0,0.81]
[1720898417362,3.49262963,3167.4,3167.0,0.81]
[1720898417561,1.09392912,3167.3,3167.0,0.81]
[1720898417761,1.09392912,3167.2,3167.0,0.81]
[1720898417933,1.09392912,3167.5,3167.0,0.81]
[1720898418257,1.09392912,3167.4,3167.0,0.81]
[1720898418445,2.72905195,3167.6,3167.0,0.81]
[1720898418446,1.09392912,3167.3,3167.0,0.81]
[1720898418650,1.09392912,3167.2,3167.0,0.81]
[1720898418845,1.09392912,3167.1,3167.0,0.81]
[1720898420864,0.33035195,3167.6,3167.0,3.1569]
[1720898421033,1.0939207,3167.1,3167.0,2.3469]
[1720898421362,1.0939207,3167.1,3167.0,3.1569]
[1720898421534,1.0939207,3167.1,3167.0,3.969662]
[1720898424640,0.33035195,3167.6,3167.0,3.969662]
[1720898424841,1.09392057,3167.5,3167.2,0.81]
[1720898425073,1.09392057,3167.4,3167.2,0.81]
[1720898425240,1.09392057,3167.3,3167.2,0.81]
[1720898425942,1.09392057,3167.5,3167.2,0.81]
[1720898426449,1.09392057,3167.4,3167.2,0.81]
[1720898426643,1.09392057,3167.3,3167.2,0.81]
[1720898427294,1.09392058,3167.5,3167.2,0.81]
[1720898427448,1.09392058,3167.3,3167.2,0.81]
[1720898427767,1.09392094,3167.3,3167.2,0.81]
[1720898428143,1.09392094,3167.5,3167.2,0.81]
[1720898428343,1.09392094,3167.4,3167.2,0.81]
[1720898428580,1.09392094,3167.5,3167.2,0.81]
[1720898428873,1.09392094,3167.4,3167.2,0.81]
[1720898429070,0.33035195,3167.6,3167.2,0.81]
[1720898429071,1.09392094,3167.5,3167.2,0.81]
[1720898429292,1.09392094,3167.4,3167.2,0.81]
[1720898429475,1.09392094,3167.5,3167.2,0.81]
[1720898429658,1.09392094,3167.4,3167.2,0.81]
[1720898429843,1.09392094,3167.3,3167.2,0.81]
[1720898430373,1.09392094,3167.5,3167.2,0.81]
[1720898430549,1.09392094,3167.4,3167.2,0.81]
[1720898430946,1.09392567,3167.3,3167.2,0.81]
[1720898434342,2.65201675,3167.6,3167.2,0.81]
[1720898434343,2.65298922,3167.6,3167.2,0.81]
[1720898434663,1.09392475,3167.5,3167.2,0.81]
[1720898434857,1.09392493,3167.4,3167.2,0.81]
[1720898435076,1.09392493,3167.3,3167.2,0.81]
[1720898435280,1.09392493,3167.5,3167.2,0.81]
[1720898435448,1.09392493,3167.4,3167.2,0.81]
[1720898435641,1.09392493,3167.3,3167.2,0.81]
[1720898436068,1.09392493,3167.5,3167.2,0.81]
[1720898436268,1.09392493,3167.4,3167.2,0.81]
[1720898436472,1.09392493,3167.3,3167.2,0.81]
[1720898436670,1.09392493,3167.5,3167.2,0.81]
[1720898436885,1.09392493,3167.4,3167.2,0.81]
[1720898437078,1.09393073,3167.3,3167.2,0.81]
[1720898437769,1.09393363,3167.3,3167.2,0.81]
[1720898437959,1.09393363,3167.3,3167.0,0.81]
[1720898438146,1.09393363,3167.2,3167.0,0.81]
[1720898438366,1.09393363,3167.5,3167.0,0.81]
[1720898438556,1.09393363,3167.4,3167.0,0.81]
[1720898438751,1.09393363,3167.3,3167.0,0.81]
[1720898438969,2.32352624,3167.5,3167.0,0.81]
[1720898438970,1.09393363,3167.2,3167.0,0.81]
[1720898439178,1.09393363,3167.1,3167.0,0.81]
[1720898439550,1.09393363,3167.4,3167.0,0.81]
[1720898439750,1.09393363,3167.3,3167.0,0.81]
[1720898439980,3.41745987,3167.4,3166.8,3.2901]
[1720898440146,3.41745987,3167.3,3166.8,3.2901]
[1720898440352,3.74782426,3167.2,3166.8,3.2901]
[1720898440691,1.09393363,3167.1,3166.8,3.2901]
[1720898440848,1.09393363,3167.0,3166.8,3.2901]
[1720898441178,1.09407617,3166.9,3166.8,3.2901]
[1720898444371,2.65487007,3167.2,3166.8,3.2901]
[1720898444656,1.09404846,3167.1,3167.0,0.81]
[1720898444851,0.33036439,3167.2,3167.0,0.81]
[1720898445153,1.09399021,3167.1,3167.0,0.81]
[1720898447983,1.09396603,3167.1,3167.0,0.81]
[1720898451186,0.33036439,3167.2,3167.0,0.81]
[1720898451390,1.09396516,3167.1,3167.0,0.81]
[1720898454601,1.09395419,3167.1,3167.0,0.81]
[1720898454768,1.09395419,3167.1,3167.0,1.48184197]
[1720898454965,1.0939526,3167.1,3167.0,3.96194197]
[1720898457115,1.09394626,3167.1,3167.0,3.96194197]
[1720898457907,0.33036777,3167.6,3167.0,3.96194197]
[1720898458115,3.41834509,3167.5,3167.3,0.81]
[1720898458314,1.09394456,3167.4,3167.3,0.81]
[1720898459815,1.09394456,3167.4,3167.3,3.2534]
[1720898460011,2.6547683,3167.6,3167.3,3.2534]
[1720898460012,1.09394456,3167.5,3167.3,3.57874]
[1720898460234,1.09394456,3167.4,3167.3,2.76874]
[1720898460525,1.09394456,3167.4,3167.3,3.57874]
[1720898461011,1.09380335,3167.4,3167.3,3.57874]
[1720898463818,1.09380502,3167.4,3167.3,3.57874]
[1720898464195,0.33036777,3167.6,3167.3,3.57874]
[1720898464399,0.33036777,3167.6,3167.3,2.76874]
[1720898464400,1.09379866,3167.5,3167.3,2.76874]
[1720898464607,1.09379866,3167.4,3167.3,2.76874]
[1720898464926,1.09379866,3167.4,3167.3,3.57874]
[1720898466322,0.33036777,3167.6,3167.3,3.57874]
[1720898466524,1.09380314,3167.5,3167.3,2.76874]
[1720898466823,1.09380314,3167.4,3167.3,2.76874]
[1720898467119,1.09380314,3167.4,3167.3,3.57874]
[1720898467325,1.09380001,3167.4,3167.3,3.57874]
[1720898467998,1.09380649,3167.4,3167.3,3.57874]
[1720898469693,1.09380649,3167.4,3167.3,5.78882]
[1720898470494,0.33036777,3167.6,3167.3,5.78882]
[1720898470707,0.33036777,3167.6,3167.5,0.81]
[1720898471115,1.42417104,3167.6,3167.5,0.81]
[1720898472915,1.42417784,3167.6,3167.5,0.81]
[1720898474042,1.42417894,3167.6,3167.5,0.81]
[1720898474540,1.42417896,3167.6,3167.5,0.81]
[1720898476623,0.33036777,3167.6,3167.5,0.81]
[1720898477029,1.42417731,3167.6,3167.5,0.81]
[1720898477240,0.33036777,3167.6,3167.5,0.81]
[1720898477538,1.42417053,3167.6,3167.5,0.81]
[1720898479702,1.42420112,3167.6,3167.5,0.81]
[1720898480718,0.33036777,3167.6,3167.5,0.81]
[1720898481131,1.42415193,3167.6,3167.5,0.81]
[1720898481331,1.09378416,3167.6,3167.5,0.81]
[1720898481633,1.09378416,3167.6,3167.5,1.356348]
[1720898481837,1.09378416,3167.6,3167.5,3.566288]
[1720898482042,1.09378416,3167.6,3167.5,6.565888]
[1720898483814,1.09378416,3167.6,3167.5,8.775828]
[1720898484011,0.33036624,3168.1,3167.7,2.20978]
[1720898484329,0.33036624,3168.1,3168.0,0.81]
[1720898484918,1.42394992,3168.1,3168.0,0.81]
[1720898486821,1.42394482,3168.1,3168.0,0.81]
[1720898487418,0.33036624,3168.1,3168.0,0.81]
[1720898487623,1.42395,3168.1,3168.0,0.81]
[1720898490036,1.42395,3168.1,3167.8,0.81]
[1720898490232,1.09358376,3168.0,3167.8,0.81]
[1720898490835,0.33036624,3168.1,3167.8,0.81]
[1720898491035,1.0936536,3167.9,3167.6,4.65945]
[1720898491228,0.33036624,3168.1,3167.9,0.81]
[1720898491424,1.09366706,3168.0,3167.9,0.81]
[1720898494136,0.33036624,3168.1,3167.9,0.81]
[1720898494342,1.09367164,3168.0,3167.9,0.81]
[1720898494539,1.09366264,3168.0,3167.9,0.81]
[1720898496757,1.09363974,3168.0,3167.9,0.81]
[1720898497627,1.09363119,3168.0,3167.9,0.81]
[1720898498255,1.09363119,3168.0,3167.9,3.0741]
[1720898499155,1.09358468,3168.0,3167.9,3.0741]
[1720898500962,1.09359059,3168.0,3167.9,3.0741]
[1720898501262,1.09359059,3168.0,3167.9,3.602481]
[1720898502334,1.09359059,3168.0,3167.9,0.81]
[1720898504535,1.09362596,3168.0,3167.9,0.81]
[1720898504687,0.33036624,3168.1,3167.9,0.81]
[1720898504978,1.09361991,3168.0,3167.9,0.81]
[1720898505378,1.09361991,3168.0,3167.6,2.20985]
[1720898505671,1.09361991,3167.9,3167.8,0.81]
[1720898506954,1.09372162,3167.9,3167.8,0.81]
[1720898508745,2.3132,3168.0,3167.8,0.81]
[1720898508946,1.09375372,3167.9,3167.8,0.81]
[1720898511051,1.09373401,3167.9,3167.8,0.81]
[1720898514461,1.09368567,3167.9,3167.8,0.81]
[1720898514889,1.0937109,3167.9,3167.8,0.81]
[1720898517185,1.09374999,3167.9,3167.8,0.81]
[1720898517655,0.33036624,3168.1,3167.8,0.81]
[1720898517854,1.09374339,3167.9,3167.8,0.81]
[1720898519801,1.09374339,3167.9,3167.3,6.67824718]
[1720898519802,1.46831279,3167.9,3167.3,6.67824718]
[1720898519962,1.46831279,3167.9,3167.3,0.81]
[1720898519963,1.09374339,3167.8,3167.3,0.81]
[1720898520169,3.41874339,3167.7,3166.9,11.27314718]
[1720898520367,1.09374339,3167.6,3167.3,0.81]
[1720898520796,4.64724331,3167.7,3167.3,0.81]
[1720898520984,1.09390285,3167.6,3167.3,0.81]
[1720898523478,4.64724331,3167.7,3167.3,0.81]
[1720898523667,1.0939162,3167.6,3167.3,0.81]
[1720898523886,2.325,3167.7,3167.3,0.81]
[1720898524071,1.09391575,3167.6,3167.3,0.81]
[1720898524276,2.3214052,3167.9,3167.5,0.81]
[1720898524607,1.09387086,3167.8,3167.5,0.81]
[1720898524808,1.09387086,3167.7,3167.5,0.81]
[1720898524993,1.09387086,3167.6,3167.5,0.81]
[1720898525413,1.09387086,3167.7,3167.5,0.81]
[1720898525616,1.09387086,3167.6,3167.5,0.81]
[1720898526300,1.09389071,3167.6,3167.5,0.81]
[1720898526827,1.09384996,3167.6,3167.5,0.81]
[1720898530314,1.09382332,3167.6,3167.5,0.81]
[1720898533017,2.325,3168.0,3167.5,0.81]
[1720898533218,3.67989602,3167.9,3167.5,0.81]
[1720898533406,1.09383407,3167.8,3167.5,0.81]
[1720898533594,0.26553662,3167.9,3167.5,0.81]
[1720898533794,1.09383801,3167.8,3167.5,0.81]
[1720898534106,0.26553662,3167.9,3167.5,0.81]
[1720898534326,1.09384635,3167.8,3167.5,0.81]
[1720898534506,1.09384635,3167.7,3167.5,0.81]
[1720898534703,1.09384635,3167.8,3167.5,0.81]
[1720898535018,1.09384635,3167.8,3167.3,3.1946]
[1720898536524,1.09384882,3167.7,3167.3,3.1946]
[1720898536745,1.09384882,3167.6,3167.3,3.1946]
[1720898537030,1.09386124,3167.5,3167.3,3.1946]
[1720898537247,1.09386124,3167.4,3167.3,3.1946]
[1720898537424,1.09386124,3167.9,3167.3,3.1946]
[1720898537728,4.91119049,3168.0,3167.3,3.1946]
[1720898537729,1.09386124,3167.8,3167.5,0.81]
[1720898537899,1.09386124,3167.7,3167.5,0.81]
[1720898538096,1.09386124,3167.6,3167.5,0.81]
[1720898540032,1.09386124,3167.6,3167.3,3.1946]
[1720898540222,1.09386124,3167.5,3167.3,3.1946]
[1720898540426,1.09385714,3167.4,3167.3,3.1946]
[1720898541234,1.09385714,3167.4,3167.3,3.735082]
[1720898541604,1.09381072,3167.4,3167.3,3.735082]
[1720898543813,2.325,3168.0,3167.3,3.735082]
[1720898544042,2.325,3168.0,3167.3,3.1946]
[1720898544043,3.41479793,3167.9,3167.3,3.1946]
[1720898544224,2.32094375,3167.9,3167.3,3.1946]
[1720898544430,1.09385261,3167.8,3167.3,3.1946]
[1720898544625,1.09385261,3167.7,3167.3,3.1946]
[1720898544810,1.09385261,3167.6,3167.3,3.1946]
[1720898545015,1.09385261,3167.5,3167.3,3.1946]
[1720898545209,2.32107872,3167.9,3167.3,3.1946]
[1720898545210,1.09385261,3167.4,3167.3,3.1946]
[1720898546533,1.09385105,3167.4,3167.3,3.1946]
[1720898553939,1.09386349,3167.4,3167.3,3.1946]
[1720898554329,1.09387183,3167.4,3167.3,3.1946]
[1720898557275,1.09385941,3167.4,3167.3,3.1946]
[1720898558078,1.09385371,3167.4,3167.3,3.1946]
[1720898558942,1.09385371,3167.4,3167.3,0.81]
[1720898560056,1.09385371,3167.4,3166.9,6.67824718]
[1720898560339,1.09385371,3167.3,3167.2,0.81]
[1720898560572,1.09397349,3167.3,3167.2,0.81]
[1720898560966,1.09397349,3167.3,3167.2,0.7064]
[1720898561344,1.09397349,3167.3,3166.9,6.67824718]
[1720898561543,1.09397349,3167.2,3166.9,6.67824718]
[1720898561738,1.09397349,3167.1,3166.9,6.67824718]
[1720898561975,4.73778953,3167.5,3167.0,0.81]
[1720898562173,1.09397062,3167.4,3167.2,0.81]
[1720898562379,1.09397062,3167.3,3167.2,0.81]
[1720898563388,1.09389856,3167.3,3167.2,0.81]
[1720898563888,2.4139,3167.8,3167.2,0.81]
[1720898564065,1.09389731,3167.3,3167.2,0.81]